bitfinex/quotes_BTCUSD_20250831
["timestamp","ask_amount","ask_price","bid_price","bid_amount"]
[1756600016190,1.44017666,109040.0,109030.0,0.54235273]
[1756600016765,1.44017666,109040.0,109030.0,0.54558273]
[1756600018601,1.44017666,109040.0,109030.0,0.54755273]
[1756600019401,1.44017666,109040.0,109030.0,0.36411698]
[1756600019792,1.25138219,109040.0,109030.0,0.36411698]
[1756600020570,1.2456068,109040.0,109030.0,0.69755273]
[1756600020779,0.027578,109050.0,109030.0,0.54755273]
[1756600020984,0.18339991,109060.0,109050.0,0.20434092]
[1756600021246,0.18339991,109060.0,109050.0,0.57439792]
[1756600021247,0.05125519,109060.0,109050.0,0.57439792]
[1756600021468,0.29253689,109070.0,109060.0,0.02093882]
[1756600021668,0.65816688,109070.0,109060.0,0.11391883]
[1756600022072,1.56377368,109070.0,109060.0,0.11391883]
[1756600022299,1.57417044,109070.0,109060.0,0.11391883]
[1756600022473,1.57417044,109070.0,109060.0,0.12351971]
[1756600022677,1.57416031,109070.0,109060.0,0.12351971]
[1756600023186,1.56771226,109070.0,109060.0,0.12351971]
[1756600025377,1.46576226,109070.0,109060.0,0.462105]
[1756600025587,1.51576226,109070.0,109060.0,0.312105]
[1756600025802,1.51576226,109070.0,109060.0,0.462105]
[1756600026006,1.56576226,109070.0,109060.0,0.12871971]
[1756600026206,1.56771226,109070.0,109060.0,0.27647971]
[1756600026430,1.57053226,109070.0,109060.0,0.27647971]
[1756600027597,1.56771226,109070.0,109060.0,0.27647971]
[1756600027931,1.57053226,109070.0,109060.0,0.27647971]
[1756600030462,1.56771226,109070.0,109060.0,0.27647971]
[1756600030870,1.57053226,109070.0,109060.0,0.12351971]
[1756600031067,0.57338529,109060.0,109050.0,0.211897]
[1756600031300,1.53094209,109060.0,109050.0,0.364857]
[1756600031460,1.53376209,109060.0,109050.0,0.364857]
[1756600031655,1.56133609,109060.0,109050.0,0.364857]
[1756600032102,1.56133609,109060.0,109050.0,0.365857]
[1756600032301,1.56133609,109060.0,109050.0,0.212897]
[1756600032510,1.56133609,109060.0,109050.0,0.366857]
[1756600035251,1.55851609,109060.0,109050.0,0.366857]
[1756600037790,1.55714358,109060.0,109050.0,0.366857]
[1756600038587,1.55714358,109060.0,109050.0,0.370087]
[1756600039267,1.55714358,109060.0,109050.0,0.366857]
[1756600040951,1.55714358,109060.0,109050.0,0.372077]
[1756600041154,1.55714358,109060.0,109050.0,0.366857]
[1756600044372,1.55714358,109060.0,109050.0,0.372077]
[1756600047115,1.55519358,109060.0,109050.0,0.372077]
[1756600047860,1.55717358,109060.0,109050.0,0.372077]
[1756600057195,1.56362689,109060.0,109050.0,0.372077]
[1756600059885,1.33892661,109060.0,109050.0,0.372077]
[1756600060120,1.53952599,109060.0,109050.0,0.372077]
[1756600060319,1.54150599,109060.0,109050.0,0.372077]
[1756600061480,1.51783859,109060.0,109050.0,0.372077]
[1756600061680,1.54151648,109060.0,109050.0,0.372077]
[1756600062415,1.54151654,109060.0,109050.0,0.372077]
[1756600064943,1.54151654,109060.0,109050.0,0.219117]
[1756600065129,1.54151654,109060.0,109050.0,0.372037]
[1756600071102,1.54151654,109060.0,109050.0,0.219117]
[1756600071274,1.54151654,109060.0,109050.0,0.366817]
[1756600072225,1.53506036,109060.0,109050.0,0.366817]
[1756600072430,1.5415185,109060.0,109050.0,0.366817]
[1756600074642,1.5415185,109060.0,109050.0,0.213897]
[1756600074977,1.5415185,109060.0,109050.0,0.366817]
[1756600078149,1.5415185,109060.0,109050.0,0.368867]
[1756600078357,1.5395385,109060.0,109050.0,0.371907]
[1756600080112,1.52231675,109060.0,109050.0,0.371907]
[1756600080700,1.52231643,109060.0,109050.0,0.371907]
[1756600081927,1.51585859,109060.0,109050.0,0.371907]
[1756600082141,1.52231631,109060.0,109050.0,0.371907]
[1756600082850,1.52231622,109060.0,109050.0,0.371907]
[1756600086559,1.52429622,109060.0,109050.0,0.371907]
[1756600087013,1.51535622,109060.0,109050.0,0.371907]
[1756600087836,1.48778222,109060.0,109050.0,0.371907]
[1756600091014,1.48580222,109060.0,109050.0,0.371907]
[1756600091647,1.48779222,109060.0,109050.0,0.371907]
[1756600092582,0.58019542,109060.0,109050.0,0.371907]
[1756600092776,1.20241693,109060.0,109050.0,0.57624792]
[1756600093050,1.1959593,109060.0,109050.0,0.57624792]
[1756600093296,1.2459593,109060.0,109050.0,0.57624792]
[1756600093471,0.9056068,109060.0,109050.0,0.57624792]
[1756600097523,0.9056068,109060.0,109050.0,0.72624792]
[1756600097735,0.9056068,109060.0,109050.0,0.57624792]
[1756600099265,0.52341662,109070.0,109060.0,0.20432411]
[1756600099460,0.52341662,109070.0,109060.0,0.36548752]
[1756600099588,0.52341662,109070.0,109060.0,0.36873752]
[1756600100401,1.47902342,109070.0,109060.0,0.36873752]
[1756600101020,1.29565437,109070.0,109060.0,0.36873752]
[1756600101225,0.90565437,109070.0,109060.0,0.36873752]
[1756600101893,0.90291819,109070.0,109060.0,0.36873752]
[1756600102294,0.90291819,109070.0,109060.0,0.51873752]
[1756600102499,0.90291819,109070.0,109060.0,0.36873752]
[1756600107302,0.90062577,109070.0,109060.0,0.36873752]
[1756600108119,0.90062577,109070.0,109060.0,0.36736719]
[1756600111139,0.90062577,109070.0,109060.0,0.51736719]
[1756600111347,0.90062577,109070.0,109060.0,0.36736719]
[1756600111505,0.90062577,109070.0,109060.0,0.39493419]
[1756600115254,0.90062577,109070.0,109060.0,0.54781419]
[1756600115890,0.90062577,109070.0,109060.0,0.39493419]
[1756600116105,0.4528034,109070.0,109060.0,0.54781419]
[1756600116511,0.4528034,109070.0,109060.0,0.54881419]
[1756600117538,0.4528034,109070.0,109060.0,0.39593419]
[1756600117738,0.4528034,109070.0,109060.0,0.54881419]
[1756600118039,0.4528034,109070.0,109060.0,0.54981419]
[1756600121266,0.4528034,109070.0,109060.0,0.39693419]
[1756600121468,0.4528034,109070.0,109060.0,0.54981419]
[1756600123179,0.24615884,109070.0,109060.0,0.69981419]
[1756600123469,0.24615884,109070.0,109060.0,0.54981419]
[1756600125250,0.24615884,109070.0,109060.0,0.69981419]
[1756600125502,0.63615533,109080.0,109060.0,0.54981419]
[1756600125658,0.63615533,109080.0,109070.0,0.16350001]
[1756600125981,0.63813533,109080.0,109070.0,0.33681816]
[1756600126976,1.09093873,109080.0,109070.0,0.33681816]
[1756600129457,1.09093873,109080.0,109070.0,0.18393816]
[1756600129594,1.09093873,109080.0,109070.0,0.33697816]
[1756600129798,1.09374873,109080.0,109070.0,0.33697816]
[1756600130701,1.09374873,109080.0,109070.0,0.33701816]
[1756600133115,1.09093873,109080.0,109070.0,0.33701816]
[1756600134034,1.09093873,109080.0,109070.0,0.18393816]
[1756600134239,1.09374873,109080.0,109070.0,0.33697816]
[1756600136529,1.09374873,109080.0,109070.0,0.18393816]
[1756600136708,1.09374873,109080.0,109070.0,0.33701816]
[1756600139986,1.09093873,109080.0,109070.0,0.33701816]
[1756600143985,2.89215893,109080.0,109070.0,0.07052]
[1756600144199,2.91582816,109080.0,109070.0,0.22352]
[1756600144415,2.94339816,109080.0,109070.0,0.22352]
[1756600144618,1.58498796,109080.0,109070.0,0.22352]
[1756600145280,1.58498424,109080.0,109070.0,0.22352]
[1756600145504,1.39965231,109080.0,109070.0,0.25247834]
[1756600145683,1.58300424,109080.0,109070.0,0.25247834]
[1756600146104,2.94141444,109080.0,109070.0,0.22352]
[1756600146563,1.58300424,109080.0,109070.0,0.22352]
[1756600148166,1.58153424,109080.0,109070.0,0.22352]
[1756600148732,1.58153042,109080.0,109070.0,0.22352]
[1756600148959,1.58153042,109080.0,109070.0,0.2267]
[1756600149165,1.58153042,109080.0,109070.0,0.25597634]
[1756600153409,1.58153042,109080.0,109070.0,0.35097635]
[1756600153410,1.50652873,109080.0,109070.0,0.35097635]
[1756600154030,1.45652873,109080.0,109070.0,0.35097635]
[1756600156377,1.50652873,109080.0,109070.0,0.35097635]
[1756600157251,1.45652873,109080.0,109070.0,0.35097635]
[1756600158426,1.50652873,109080.0,109070.0,0.35097635]
[1756600158628,1.45652873,109080.0,109070.0,0.35097635]
[1756600159437,1.50652873,109080.0,109070.0,0.35097635]
[1756600160045,1.45652873,109080.0,109070.0,0.35097635]
[1756600162640,1.50652873,109080.0,109070.0,0.35097635]
[1756600163861,1.50858873,109080.0,109070.0,0.31662001]
[1756600164067,1.50858873,109080.0,109070.0,0.31863001]
[1756600166272,1.45858873,109080.0,109070.0,0.31863001]
[1756600166451,1.50858873,109080.0,109070.0,0.31863001]
[1756600167545,1.50584502,109080.0,109070.0,0.31863001]
[1756600167948,1.50877502,109080.0,109070.0,0.31859001]
[1756600168827,1.50877502,109080.0,109070.0,0.16551001]
[1756600169047,1.50877502,109080.0,109070.0,0.31859001]
[1756600170076,1.50877502,109080.0,109070.0,0.31658001]
[1756600170365,1.50877502,109080.0,109070.0,0.16350001]
[1756600170575,1.55877502,109080.0,109070.0,0.2236]
[1756600172948,1.55877502,109080.0,109070.0,0.24805388]
[1756600173558,1.55584502,109080.0,109070.0,0.25006388]
[1756600174159,1.55584502,109080.0,109070.0,0.24869446]
[1756600174398,1.55877502,109080.0,109070.0,0.24869446]
[1756600174800,0.65023822,109080.0,109070.0,0.24869446]
[1756600175014,1.55877502,109080.0,109070.0,0.24869446]
[1756600175399,1.55584502,109080.0,109070.0,0.24869446]
[1756600176038,1.55877502,109080.0,109070.0,0.24668446]
[1756600176234,1.50877502,109080.0,109070.0,0.24869446]
[1756600176585,1.55877502,109080.0,109070.0,0.24869446]
[1756600176786,1.55584502,109080.0,109070.0,0.24869446]
[1756600179040,1.55877502,109080.0,109070.0,0.22223058]
[1756600179496,1.55877502,109080.0,109070.0,0.22424058]
[1756600180122,1.55584502,109080.0,109070.0,0.22424058]
[1756600180554,1.55877502,109080.0,109070.0,0.22424058]
[1756600181160,1.56522993,109080.0,109070.0,0.22424058]
[1756600181871,1.56522993,109080.0,109070.0,0.22223058]
[1756600182083,1.58244331,109080.0,109070.0,0.22223058]
[1756600184393,1.58244514,109080.0,109070.0,0.22424058]
[1756600188262,1.56523171,109080.0,109070.0,0.22424058]
[1756600188432,1.58244959,109080.0,109070.0,0.22424058]
[1756600188858,1.5824496,109080.0,109070.0,0.22424058]
[1756600190783,1.5324496,109080.0,109070.0,0.22424058]
[1756600190989,1.5824496,109080.0,109070.0,0.22424058]
[1756600191982,1.57951984,109080.0,109070.0,0.22424058]
[1756600192166,1.57951984,109080.0,109070.0,0.22734058]
[1756600192566,1.57951984,109080.0,109070.0,0.22424058]
[1756600192978,1.58273984,109080.0,109070.0,0.22424058]
[1756600193128,1.58273984,109080.0,109070.0,0.22223058]
[1756600194622,0.62713304,109080.0,109070.0,0.22430058]
[1756600194824,1.58273984,109080.0,109070.0,0.22430058]
[1756600197054,1.24548355,109080.0,109070.0,0.22430058]
[1756600197875,1.19548355,109080.0,109070.0,0.22430058]
[1756600198009,1.24548355,109080.0,109070.0,0.22430058]
[1756600199073,1.24548418,109080.0,109070.0,0.22430058]
[1756600199317,1.19548418,109080.0,109070.0,0.22430058]
[1756600199474,1.24548418,109080.0,109070.0,0.22430058]
[1756600199774,1.19548418,109080.0,109070.0,0.22430058]
[1756600199975,1.14020418,109080.0,109070.0,0.22740058]
[1756600200152,1.11652873,109080.0,109070.0,0.22740058]
[1756600200752,1.16652873,109080.0,109070.0,0.22740058]
[1756600200958,1.11848873,109080.0,109070.0,0.22740058]
[1756600201889,0.9331768,109080.0,109070.0,0.52468788]
[1756600202092,1.11652846,109080.0,109070.0,0.52468788]
[1756600202555,1.11848846,109080.0,109070.0,0.52468788]
[1756600203104,0.9331768,109080.0,109070.0,0.52468788]
[1756600204892,1.11652846,109080.0,109070.0,0.52468788]
[1756600208668,0.02757,109080.0,109070.0,0.52468788]
[1756600208868,0.9331768,109080.0,109070.0,0.52468788]
[1756600209752,1.11652846,109080.0,109070.0,0.52468788]
[1756600210405,0.9331768,109080.0,109070.0,0.52468788]
[1756600218203,0.9056068,109080.0,109070.0,0.52468788]
[1756600218405,0.9056068,109080.0,109070.0,0.37160788]
[1756600218608,0.9056068,109080.0,109070.0,0.52452788]
[1756600220451,0.9056068,109080.0,109070.0,0.37160788]
[1756600220619,0.05325672,109090.0,109080.0,0.20429048]
[1756600220827,0.05325672,109090.0,109080.0,0.45019049]
[1756600221008,0.05530672,109090.0,109080.0,0.45223049]
[1756600221608,0.28864158,109090.0,109080.0,0.45223049]
[1756600221815,1.14424838,109090.0,109080.0,0.45223049]
[1756600222022,1.19424838,109090.0,109080.0,0.45231049]
[1756600223215,1.01091352,109090.0,109080.0,0.45231049]
[1756600223651,1.01414352,109090.0,109080.0,0.45231049]
[1756600224435,1.19747838,109090.0,109080.0,0.45231049]
[1756600224845,1.01414352,109090.0,109080.0,0.45231049]
[1756600225446,1.01091352,109090.0,109080.0,0.45331049]
[1756600226434,0.0004,109100.0,109090.0,0.18333486]
[1756600226644,0.0004,109100.0,109090.0,0.34887487]
[1756600226645,0.45329067,109100.0,109090.0,0.34887487]
[1756600226783,0.90609407,109100.0,109090.0,0.35188487]
[1756600226984,0.90609407,109100.0,109090.0,0.50480487]
[1756600227191,0.90609407,109100.0,109090.0,0.53236187]
[1756600227669,0.90609407,109100.0,109090.0,0.53336187]
[1756600228208,0.90609407,109100.0,109090.0,0.53236187]
[1756600228405,0.90609407,109100.0,109090.0,0.53436187]
[1756600229022,0.90609407,109100.0,109090.0,0.53636187]
[1756600229437,0.45329067,109100.0,109090.0,0.53636187]
[1756600230286,0.45329067,109100.0,109090.0,0.38344187]
[1756600230590,0.45329067,109100.0,109090.0,0.53636187]
[1756600230746,0.90609407,109100.0,109090.0,0.53636187]
[1756600230953,0.90609407,109100.0,109090.0,0.57821517]
[1756600231148,0.90609407,109100.0,109090.0,0.42529517]
[1756600231349,0.90609407,109100.0,109090.0,0.57821517]
[1756600232155,0.45329067,109100.0,109090.0,0.57821517]
[1756600235690,0.45329067,109100.0,109090.0,0.57817517]
[1756600236140,0.45329067,109100.0,109090.0,0.84567517]
[1756600236351,0.45329067,109100.0,109090.0,0.69279517]
[1756600236558,1.09469212,109100.0,109090.0,0.77121487]
[1756600237366,1.09469212,109100.0,109090.0,0.61833487]
[1756600237561,1.09469212,109100.0,109090.0,0.77121487]
[1756600237979,1.09469212,109100.0,109090.0,0.79215369]
[1756600238199,1.12225112,109100.0,109090.0,0.79215369]
[1756600238401,1.12225112,109100.0,109090.0,0.63927369]
[1756600238596,1.12225112,109100.0,109090.0,0.60881883]
[1756600241709,1.12225112,109100.0,109090.0,0.79215369]
[1756600242190,1.12225112,109100.0,109090.0,0.37177369]
[1756600242335,1.12225112,109100.0,109090.0,0.52465369]
[1756600242814,1.12225112,109100.0,109090.0,0.37177369]
[1756600243038,1.12225112,109100.0,109090.0,0.18843883]
[1756600243274,1.12225112,109100.0,109090.0,0.34131883]
[1756600243477,1.12225112,109100.0,109090.0,0.52465369]
[1756600246530,0.93893307,109100.0,109090.0,0.52465369]
[1756600247074,1.12225112,109100.0,109090.0,0.52465369]
[1756600248189,0.21341432,109100.0,109090.0,0.52669369]
[1756600248419,1.12225112,109100.0,109090.0,0.52669369]
[1756600248801,1.12225112,109100.0,109090.0,0.52465369]
[1756600249932,1.12225112,109100.0,109090.0,0.52678369]
[1756600250108,0.93893307,109100.0,109090.0,0.52678369]
[1756600255985,0.93570307,109100.0,109090.0,0.52678369]
[1756600257998,0.93886307,109100.0,109090.0,0.52678369]
[1756600259844,0.93886307,109100.0,109090.0,0.52465369]
[1756600261150,0.93886307,109100.0,109090.0,0.52678369]
[1756600261355,0.93570307,109100.0,109090.0,0.52678369]
[1756600262763,0.93886307,109100.0,109090.0,0.52678369]
[1756600263458,1.12218112,109100.0,109090.0,0.52678369]
[1756600263661,0.91571251,109100.0,109090.0,0.52678369]
[1756600263871,0.91779251,109100.0,109090.0,0.37177369]
[1756600264076,0.91779251,109100.0,109090.0,0.52678369]
[1756600264291,0.91779251,109100.0,109090.0,0.52973369]
[1756600264496,0.73447446,109100.0,109090.0,0.52973369]
[1756600269025,0.4528034,109100.0,109090.0,0.52973369]
[1756600269984,0.4528034,109100.0,109090.0,0.55729269]
[1756600270975,0.28178384,109110.0,109100.0,0.18331805]
[1756600271196,0.73458724,109110.0,109100.0,0.27629806]
[1756600271403,0.73666724,109110.0,109100.0,0.27629806]
[1756600271604,0.68666724,109110.0,109100.0,0.27629806]
[1756600271810,0.73666724,109110.0,109100.0,0.27629806]
[1756600272200,0.68666724,109110.0,109100.0,0.27842806]
[1756600272443,0.55128375,109110.0,109100.0,0.30331688]
[1756600272885,0.734585,109110.0,109100.0,0.45647688]
[1756600273090,0.686665,109110.0,109100.0,0.45747688]
[1756600273314,0.739825,109110.0,109100.0,0.45243688]
[1756600273513,0.739825,109110.0,109100.0,0.45239688]
[1756600273752,1.1926284,109110.0,109100.0,0.26907883]
[1756600274814,0.739825,109110.0,109100.0,0.26907883]
[1756600275318,1.1926284,109110.0,109100.0,0.26907883]
[1756600275632,0.739825,109110.0,109100.0,0.45239688]
[1756600275818,0.736665,109110.0,109100.0,0.45239688]
[1756600276841,0.686665,109110.0,109100.0,0.45239688]
[1756600276987,0.736665,109110.0,109100.0,0.45239688]
[1756600277189,0.736665,109110.0,109100.0,0.26907883]
[1756600277609,0.686665,109110.0,109100.0,0.26907883]
[1756600278041,0.736665,109110.0,109100.0,0.26907883]
[1756600279891,0.739805,109110.0,109100.0,0.26907883]
[1756600280659,0.736665,109110.0,109100.0,0.26907883]
[1756600285552,0.686665,109110.0,109100.0,0.26907883]
[1756600285768,0.736665,109110.0,109100.0,0.26907883]
[1756600286499,0.709105,109110.0,109100.0,0.45239688]
[1756600286670,0.709105,109110.0,109100.0,0.45434688]
[1756600287311,0.47372375,109110.0,109100.0,0.45757688]
[1756600287518,0.07092035,109110.0,109100.0,0.45757688]
[1756600287672,0.707025,109110.0,109100.0,0.30441688]
[1756600288023,0.709045,109110.0,109100.0,0.27106883]
[1756600288243,0.709045,109110.0,109100.0,0.27429883]
[1756600289039,0.709045,109110.0,109100.0,0.45761688]
[1756600289926,0.709045,109110.0,109100.0,0.31070763]
[1756600290144,0.709045,109110.0,109100.0,0.27114883]
[1756600290813,0.709045,109110.0,109100.0,0.27437883]
[1756600291223,1.1649884,109110.0,109100.0,0.24830001]
[1756600291856,1.1649884,109110.0,109100.0,0.09498001]
[1756600292027,1.1649884,109110.0,109100.0,0.24830001]
[1756600293074,1.17144166,109110.0,109100.0,0.24830001]
[1756600293549,0.28331805,109100.0,109090.0,0.33802]
[1756600293757,1.19206485,109100.0,109090.0,0.49134]
[1756600293958,1.19408485,109100.0,109090.0,0.49134]
[1756600294303,1.19094485,109100.0,109090.0,0.49134]
[1756600294749,1.19094485,109100.0,109090.0,0.49334]
[1756600295610,1.19094485,109100.0,109090.0,0.22584]
[1756600295818,1.19094485,109100.0,109090.0,0.22784]
[1756600296273,1.19094485,109100.0,109090.0,0.07452]
[1756600296473,1.19408485,109100.0,109090.0,0.22788]
[1756600297690,0.98170134,109100.0,109090.0,0.250668]
[1756600298079,0.98170134,109100.0,109090.0,0.07452]
[1756600298080,1.16501939,109100.0,109090.0,0.07452]
[1756600298301,1.17146806,109100.0,109090.0,0.22792]
[1756600298502,1.19258339,109100.0,109090.0,0.22792]
[1756600300816,1.18944339,109100.0,109090.0,0.22792]
[1756600301465,1.18944339,109100.0,109090.0,0.22987]
[1756600301667,1.52944339,109100.0,109090.0,0.22987]
[1756600302019,1.52944339,109100.0,109090.0,0.2331]
[1756600302420,1.52944339,109100.0,109090.0,0.22987]
[1756600303237,1.52944339,109100.0,109090.0,0.22792]
[1756600303980,1.00570545,109100.0,109090.0,0.22792]
[1756600304144,1.45850885,109100.0,109090.0,0.22792]
[1756600304733,1.45850885,109100.0,109090.0,0.22987]
[1756600307897,1.45850885,109100.0,109090.0,0.22792]
[1756600309059,1.46164885,109100.0,109090.0,0.22792]
[1756600310852,1.45850885,109100.0,109090.0,0.22792]
[1756600311260,1.45850885,109100.0,109090.0,0.23007]
[1756600311731,1.45850885,109100.0,109090.0,0.22792]
[1756600316319,1.46173885,109100.0,109090.0,0.22788]
[1756600319054,1.45850885,109100.0,109090.0,0.22788]
[1756600319476,1.46173885,109100.0,109090.0,0.22788]
[1756600319928,1.45850885,109100.0,109090.0,0.256052]
[1756600320497,1.46495769,109100.0,109090.0,0.256052]
[1756600320903,1.46818769,109100.0,109090.0,0.07452]
[1756600321107,1.48538461,109100.0,109090.0,0.2278]
[1756600321512,1.48538461,109100.0,109090.0,0.15728]
[1756600321711,6.28538461,109100.0,109090.0,0.004]
[1756600321913,6.28538461,109100.0,109090.0,0.15732]
[1756600322802,6.28538461,109100.0,109090.0,0.15532]
[1756600323397,6.28538461,109100.0,109090.0,0.15332]
[1756600323886,6.43970748,109100.0,109090.0,0.001]
[1756600324301,0.18333486,109090.0,109080.0,0.15332]
[1756600324504,5.91787029,109090.0,109080.0,0.15332]
[1756600324710,1.11464029,109090.0,109080.0,0.15332]
[1756600325112,1.14220829,109090.0,109080.0,0.15332]
[1756600325716,1.14543829,109090.0,109080.0,0.15332]
[1756600326418,1.14543829,109090.0,109080.0,0.15432]
[1756600329763,1.14542709,109090.0,109080.0,0.15432]
[1756600331017,1.14542709,109090.0,109080.0,0.001]
[1756600331262,1.14542709,109090.0,109080.0,0.1544]
[1756600331795,1.14542709,109090.0,109080.0,0.17690073]
[1756600332865,1.14542709,109090.0,109080.0,0.1544]
[1756600334455,1.1454176,109090.0,109080.0,0.1544]
[1756600335300,1.1421876,109090.0,109080.0,0.15655]
[1756600335613,1.1421876,109090.0,109080.0,0.15949]
[1756600337425,1.1421876,109090.0,109080.0,0.15655]
[1756600337630,1.1421876,109090.0,109080.0,0.18249973]
[1756600338558,1.1401376,109090.0,109080.0,0.18249973]
[1756600340400,1.1422576,109090.0,109080.0,0.18249973]
[1756600342709,1.1401376,109090.0,109080.0,0.33249973]
[1756600342916,0.64258224,109090.0,109080.0,0.18249973]
[1756600343130,0.63613826,109090.0,109080.0,0.18249973]
[1756600346396,0.55089986,109090.0,109080.0,0.4588314]
[1756600346583,0.97613826,109090.0,109080.0,0.4588314]
[1756600349882,0.4528034,109090.0,109080.0,0.4588314]
[1756600350059,0.4528034,109090.0,109080.0,0.6088314]
[1756600350432,0.4528034,109090.0,109080.0,0.4588314]
[1756600351012,0.4528034,109090.0,109080.0,0.6088314]
[1756600351218,0.21088205,109100.0,109080.0,0.4588314]
[1756600351422,0.4528034,109090.0,109080.0,0.4558914]
[1756600352013,0.4528034,109090.0,109080.0,0.4588714]
[1756600352228,0.4528034,109090.0,109080.0,0.6088714]
[1756600352428,0.4528034,109090.0,109080.0,0.6078714]
[1756600352945,0.4528034,109090.0,109080.0,0.4578714]
[1756600354129,0.4528034,109090.0,109080.0,0.4588714]
[1756600355252,0.4528034,109090.0,109080.0,0.4608714]
[1756600355659,0.4528034,109090.0,109080.0,0.4598714]
[1756600355861,0.4528034,109090.0,109080.0,0.4618714]
[1756600356022,0.2500668,109090.0,109080.0,0.4618714]
[1756600356431,0.43340166,109090.0,109080.0,0.4618714]
[1756600357663,0.2500668,109090.0,109080.0,0.4618714]
[1756600359296,0.55088205,109100.0,109080.0,0.4618714]
[1756600359503,0.4528034,109090.0,109080.0,0.4618714]
[1756600359648,0.63613826,109090.0,109080.0,0.3084714]
[1756600359853,1.09106166,109090.0,109080.0,0.27498974]
[1756600360188,1.09410166,109090.0,109080.0,0.24998001]
[1756600360500,1.09410166,109090.0,109080.0,0.25098001]
[1756600360739,1.09410166,109090.0,109080.0,0.25307001]
[1756600360740,0.18333486,109090.0,109080.0,0.25307001]
[1756600360952,0.367564,109100.0,109090.0,0.18333486]
[1756600361141,0.20422288,109110.0,109090.0,0.18840486]
[1756600361348,0.20422288,109110.0,109100.0,0.18629805]
[1756600361349,0.02092035,109110.0,109100.0,0.18629805]
[1756600361489,0.02092035,109110.0,109100.0,0.18838805]
[1756600361716,0.0004,109110.0,109100.0,0.33838805]
[1756600361987,0.0004,109110.0,109100.0,0.28136806]
[1756600362200,0.4532034,109110.0,109100.0,0.28136806]
[1756600362410,0.18582125,109110.0,109100.0,0.44044806]
[1756600362614,0.4532034,109110.0,109100.0,0.44044806]
[1756600363021,0.0004,109110.0,109100.0,0.44044806]
[1756600363453,0.0014,109110.0,109100.0,0.44044806]
[1756600363877,0.4542034,109110.0,109100.0,0.44044806]
[1756600364122,0.4542034,109110.0,109100.0,0.46138688]
[1756600364294,0.4542034,109110.0,109100.0,0.61138688]
[1756600364295,0.0014,109110.0,109100.0,0.61138688]
[1756600364526,0.0014,109110.0,109100.0,0.46626688]
[1756600364728,0.4542034,109110.0,109100.0,0.46626688]
[1756600364929,0.0014,109110.0,109100.0,0.46626688]
[1756600365134,0.0004,109110.0,109100.0,0.46626688]
[1756600365556,0.0004,109110.0,109100.0,0.46826688]
[1756600365557,0.45240428,109110.0,109100.0,0.46826688]
[1756600365781,0.0004,109110.0,109100.0,0.46826688]
[1756600366134,0.0004,109110.0,109100.0,0.46487879]
[1756600366342,0.45240428,109110.0,109100.0,0.46647879]
[1756600366673,0.39727173,109110.0,109100.0,0.30591879]
[1756600367015,0.0004,109110.0,109100.0,0.46943879]
[1756600367440,0.39727173,109110.0,109100.0,0.46943879]
[1756600367696,0.0004,109110.0,109100.0,0.46943879]
[1756600368102,0.0004,109110.0,109100.0,0.46939879]
[1756600368954,0.0004,109110.0,109100.0,0.30591879]
[1756600369232,0.39727173,109110.0,109100.0,0.46931879]
[1756600369484,0.0004,109110.0,109100.0,0.46931879]
[1756600372084,0.0004,109110.0,109100.0,0.49687279]
[1756600373463,0.00247,109110.0,109100.0,0.49675279]
[1756600373717,0.0004,109110.0,109100.0,0.49675279]
[1756600373919,0.39727173,109110.0,109100.0,0.49675279]
[1756600375090,0.40237173,109110.0,109100.0,0.44306997]
[1756600375729,0.58567298,109110.0,109100.0,0.09798001]
[1756600375932,0.58567298,109110.0,109100.0,0.1682]
[1756600376148,0.61323398,109110.0,109100.0,0.16816]
[1756600376483,0.18332662,109100.0,109080.0,0.26115353]
[1756600376902,0.18635662,109100.0,109090.0,0.25614001]
[1756600377240,0.18842662,109100.0,109090.0,0.25614001]
[1756600377856,0.18842662,109100.0,109090.0,0.09298001]
[1756600378064,0.58529835,109100.0,109090.0,0.09298001]
[1756600378263,0.58529835,109100.0,109090.0,0.25602001]
[1756600378528,1.37904181,109100.0,109090.0,0.25602001]
[1756600378866,0.58529835,109100.0,109090.0,0.25602001]
[1756600379066,0.58529835,109100.0,109090.0,0.25802001]
[1756600379284,0.58529835,109100.0,109090.0,0.25902001]
[1756600379472,0.58529835,109100.0,109090.0,0.25702001]
[1756600379668,0.58529835,109100.0,109090.0,0.25602001]
[1756600379988,0.18842662,109100.0,109090.0,0.25602001]
[1756600380184,0.58529835,109100.0,109090.0,0.25602001]
[1756600380388,0.18333486,109090.0,109080.0,0.18335166]
[1756600380603,0.39687173,109090.0,109080.0,0.44254167]
[1756600380812,0.39687173,109090.0,109080.0,0.44455167]
[1756600381019,0.39894173,109090.0,109080.0,0.44455167]
[1756600381670,0.19552252,109100.0,109080.0,0.44455167]
[1756600381849,0.39687173,109090.0,109080.0,0.44455167]
[1756600382190,0.39894173,109090.0,109080.0,0.44655167]
[1756600382365,0.58227659,109090.0,109080.0,0.44438167]
[1756600382805,0.58227659,109090.0,109080.0,0.44237167]
[1756600383013,0.58530659,109090.0,109080.0,0.09598001]
[1756600383218,0.58530659,109090.0,109080.0,0.003]
[1756600383423,0.58530659,109090.0,109080.0,0.16596]
[1756600385820,0.21599986,109090.0,109080.0,0.16596]
[1756600386025,0.61287159,109090.0,109080.0,0.16596]
[1756600388235,0.21296986,109090.0,109080.0,0.16596]
[1756600388412,0.60984159,109090.0,109080.0,0.16596]
[1756600390433,0.60984159,109090.0,109080.0,0.34931166]
[1756600392651,0.60984159,109090.0,109080.0,0.16596]
[1756600393169,0.60984159,109090.0,109080.0,0.16797]
[1756600393572,0.60984159,109090.0,109080.0,0.16596]
[1756600393752,0.21296986,109090.0,109080.0,0.16797]
[1756600393958,0.60984159,109090.0,109080.0,0.16797]
[1756600394163,0.60984159,109090.0,109080.0,0.16596]
[1756600394589,0.60984159,109090.0,109080.0,0.16797]
[1756600395160,0.60984159,109090.0,109080.0,0.16596]
[1756600395982,0.21296986,109090.0,109080.0,0.16797]
[1756600396333,0.60984159,109090.0,109080.0,0.35449166]
[1756600396540,0.60984159,109090.0,109080.0,0.17114]
[1756600397689,0.60984159,109090.0,109080.0,0.35449166]
[1756600398144,0.21296986,109090.0,109080.0,0.35449166]
[1756600398365,0.42443673,109090.0,109080.0,0.35449166]
[1756600398805,0.027565,109090.0,109080.0,0.44747167]
[1756600399022,0.027565,109090.0,109080.0,0.59747167]
[1756600399200,0.027565,109090.0,109080.0,0.44747167]
[1756600399475,0.39687173,109100.0,109090.0,0.18333486]
[1756600399667,0.39687173,109100.0,109090.0,0.35190487]
[1756600400102,0.027961,109110.0,109100.0,0.18331805]
[1756600400257,0.42483273,109110.0,109100.0,0.44368806]
[1756600401450,0.0004,109110.0,109100.0,0.44368806]
[1756600401772,0.39827173,109110.0,109100.0,0.44368806]
[1756600402576,0.39827173,109110.0,109100.0,0.59368806]
[1756600402733,0.39827173,109110.0,109100.0,0.44368806]
[1756600402938,0.39927173,109110.0,109100.0,0.44368806]